fUSD/lending_fUSD_20251229
["ID","MTS","AMOUNT","RATE_DAILY","PERIOD"]
[399994547,1766991046324,-150.0,0.00038714,7]
[399994548,1766991046334,-10378.5008083,0.000388,2]
[399994549,1766991046343,-4361.79,0.00038904,2]
[399994550,1766991046352,-150.0,0.00038991,7]
[399994551,1766991046362,-150.0,0.00038991,7]
[399994552,1766991046372,-168.0,0.00039056,2]
[399994554,1766991046382,-481.65,0.0003918,2]
[399994555,1766991046391,-151.0,0.0003918,120]
[399994556,1766991046401,-151.0,0.0003918,120]
[399994557,1766991046410,-150.0,0.00039405,7]
[399994558,1766991046420,-150.0,0.00039405,7]
[399994559,1766991046429,-150.0,0.00039405,7]
[399994560,1766991046438,-150.0,0.00039405,7]
[399994561,1766991046447,-481.65,0.00039507,2]
[399994562,1766991046456,-481.65,0.00039507,2]
[399994563,1766991046466,-375.93,0.00039654,2]
[399994564,1766991046474,-150.0,0.0003982,7]
[399994565,1766991046484,-150.0,0.0003982,7]
[399994566,1766991046494,-448.41,0.00039875,54]
[399994567,1766991046504,-2000.0,0.0004,120]
[399994568,1766991046513,-2999.0,0.0004,120]
[399994569,1766991046523,-300.32,0.0004,120]
[399994570,1766991046532,-216.65268435,0.0004,7]
[399994571,1766991046542,-150.0,0.00040097,7]
[399994572,1766991046551,-150.0,0.00040235,7]
[399994573,1766991046561,-312.0,0.00040365,30]
[399994574,1766991046570,-150.0,0.00040442,7]
[399994575,1766991046579,-150.0,0.00040442,7]
[399994576,1766991046588,-481.65,0.00040466,2]
[399994577,1766991046598,-481.65,0.00040466,2]
[399994578,1766991046607,-168.0,0.00040504,2]
[399994579,1766991046616,-455.6,0.00040614,7]
[399994580,1766991046625,-168.0,0.00040628,2]
[399994581,1766991046634,-150.0,0.0004065,7]
[399994582,1766991046644,-150.0,0.0004065,7]
[399994583,1766991046653,-150.0,0.00040682,2]
[399994584,1766991046663,-150.0,0.00040682,2]
[399994585,1766991046672,-150.0,0.00040682,2]
[399994586,1766991046681,-150.0,0.00040682,2]
[399994587,1766991046690,-150.0,0.00040682,2]
[399994588,1766991046699,-172.44,0.00040682,2]
[399994589,1766991046709,-178.66,0.00040685,2]
[399994590,1766991046718,-312.0,0.00040782,30]
[399994591,1766991046727,-250.8391,0.000408,120]
[399994592,1766991046736,-250.8391,0.000408,120]
[399994593,1766991046746,-250.8393,0.000408,120]
[399994594,1766991046755,-481.65,0.00040849,2]
[399994595,1766991046764,-481.65,0.00040849,2]
[399994596,1766991046774,-481.65,0.00040849,2]
[399994597,1766991046783,-481.65,0.00040849,2]
[399994598,1766991046792,-481.65,0.00040849,2]
[399994599,1766991046802,-481.65,0.00040849,2]
[399994600,1766991046812,-481.65,0.00040849,2]
[399994601,1766991046825,-481.65,0.00040849,2]
[399994602,1766991046835,-481.65,0.00040849,2]
[399994603,1766991046844,-481.65,0.00040849,2]
[399994604,1766991046853,-481.65,0.00040849,2]
[399994605,1766991046865,-481.65,0.00040849,2]
[399994606,1766991046875,-481.65,0.00040849,2]
[399994608,1766991046885,-481.65,0.00040849,2]
[399994610,1766991046895,-481.65,0.00040849,2]
[399994612,1766991046904,-481.65,0.00040849,2]
[399994614,1766991046913,-481.65,0.00040849,2]
[399994615,1766991046923,-481.65,0.00040849,2]
[399994617,1766991046932,-481.65,0.00040849,2]
[399994618,1766991046942,-481.65,0.00040849,2]
[399994619,1766991046951,-481.65,0.00040849,2]
[399994620,1766991046961,-481.65,0.00040849,2]
[399994621,1766991046970,-481.65,0.00040849,2]
[399994622,1766991046980,-481.65,0.00040849,2]
[399994623,1766991046991,-481.65,0.00040849,2]
[399994624,1766991047000,-481.65,0.00040849,2]
[399994625,1766991047010,-481.65,0.00040849,2]
[399994626,1766991047020,-481.65,0.00040849,2]
[399994627,1766991047029,-481.45,0.00040849,2]
[399994628,1766991047039,-409.12,0.000409,14]
[399994629,1766991047048,-1200.0,0.00041,30]
[399994630,1766991047057,-1351.0,0.00041041,7]
[399994631,1766991047067,-150.0,0.00041065,7]
[399994632,1766991047076,-300.0,0.00041094,10]
[399994633,1766991047086,-622.1888904,0.00041095,120]
[399994634,1766991047095,-500.0,0.00041095,120]
[399994635,1766991047105,-500.0,0.00041095,120]
[399994636,1766991047115,-500.0,0.00041095,120]
[399994637,1766991047125,-269.34073731,0.00041095,120]
[399994638,1766991047134,-499.965,0.00041095,120]
[399994639,1766991047143,-185.41040503,0.00041095,120]
[399994640,1766991047153,-500.0,0.00041095,120]
[399994641,1766991047163,-500.0,0.00041095,120]
[399994642,1766991047173,-500.0,0.00041095,120]
[399994643,1766991047182,-467.07305903,0.00041095,120]
[399994644,1766991047192,-1405.01,0.00041095,120]
[399994645,1766991047202,-1405.01,0.00041095,120]
[399994646,1766991047212,-1405.01,0.00041095,120]
[399994647,1766991047222,-1405.01,0.00041095,120]
[399994648,1766991047232,-1405.01,0.00041095,120]
[399994649,1766991047242,-1405.01,0.00041095,120]
[399994650,1766991047252,-1405.01,0.00041095,120]
[399994651,1766991047262,-1405.01,0.00041095,120]
[399994652,1766991047272,-1405.01,0.00041095,120]
[399994653,1766991047281,-1405.01,0.00041095,120]
[399994654,1766991047291,-312.21181666,0.00041096,2]
[399994655,1766991047300,-312.0,0.00041198,30]
[399994656,1766991047310,-500.0,0.00041314,60]
[399994657,1766991047319,-500.0,0.00041314,60]
[399994658,1766991047329,-500.0,0.00041314,60]
[399994659,1766991047338,-300.0,0.00041399,30]
[399994660,1766991047348,-7313.15432606,0.000414,2]
[399994661,1766991047358,-4218.13303971,0.000414,15]
[399994662,1766991047367,-453.33883555,0.000414,28]
[399994663,1766991047376,-341.34054317,0.000414,2]
[399994664,1766991047386,-1065.14026086,0.000414,2]
[399994665,1766991047395,-220.76404125,0.000414,8]
[399994666,1766991047406,-150.0,0.00041473,60]
[399994667,1766991047416,-157.83595805,0.00041479,30]
[399994668,1766991047426,-161.1699901,0.00041479,30]
[399994669,1766991047435,-206.02935763,0.00041479,30]
[399994670,1766991047450,-160.09867247,0.00041479,30]
[399994671,1766991047462,-239.97655917,0.00041479,30]
[399994672,1766991047474,-151.89260944,0.00041479,30]
[399994673,1766991047485,-159.79234637,0.00041479,30]
[399994674,1766991047496,-300.0,0.00041489,30]
[399994675,1766991047508,-1405.01,0.00041489,120]
[399994676,1766991047518,-1405.01,0.00041489,120]
[399994677,1766991047529,-1405.01,0.00041489,120]
[399994678,1766991047539,-1405.01,0.00041489,120]
[399994679,1766991047549,-822564.7562894,0.0004149,31]
[399994680,1766991047559,-151.0,0.0004149,120]
[399994681,1766991047573,-151.0,0.0004149,120]
[399994682,1766991047584,-1172.393976,0.0004149,120]
[399994683,1766991047595,-1172.393976,0.0004149,120]
[399994684,1766991047606,-1172.393976,0.0004149,120]
[399994685,1766991047617,-1172.393976,0.0004149,120]
[399994686,1766991047627,-1443.304395,0.0004149,120]
[399994687,1766991047637,-1443.304395,0.0004149,120]
[399994688,1766991047648,-1443.304395,0.0004149,120]
[399994689,1766991047658,-1443.304395,0.0004149,120]
[399994690,1766991047668,-414.639067,0.0004149,120]
[399994691,1766991047679,-414.639067,0.0004149,120]
[399994692,1766991047689,-414.639067,0.0004149,120]
[399994693,1766991047699,-414.639067,0.0004149,120]
[399994694,1766991047714,-151.0,0.0004149,120]
[399994695,1766991047725,-1964.849876,0.0004149,28]
[399994696,1766991047735,-1964.849876,0.0004149,28]
[399994697,1766991047746,-1964.849876,0.0004149,28]
[399994698,1766991047756,-1964.849876,0.0004149,28]
[399994699,1766991047766,-151.0,0.0004149,120]
[399994700,1766991047777,-151.0,0.0004149,120]
[399994701,1766991047786,-1405.01,0.00041499,120]
[399994702,1766991047797,-1405.01,0.00041499,120]
[399994703,1766991047807,-1405.01,0.00041499,120]
[399994704,1766991047821,-1405.01,0.00041499,120]
[399994705,1766991047830,-1405.01,0.00041499,120]
[399994706,1766991047841,-1405.01,0.00041499,120]
[399994707,1766991047852,-1405.01,0.00041499,120]
[399994708,1766991047866,-1405.01,0.00041499,120]
[399994709,1766991047876,-1405.01,0.00041499,120]
[399994710,1766991047888,-1405.19542362,0.00041499,120]
[399994711,1766991047900,-247.57713676,0.000415,31]
[399994712,1766991047911,-75061.11273608,0.000415,27]
[399994713,1766991047921,-636966.84908046,0.000415,120]
[399994714,1766991048292,-361.01869201,0.0002904,2]
[399994715,1766991048336,-969.04,0.00027523,2]
[399994716,1766991048367,-1585.57444177,0.00027523,2]
[399994717,1766991048379,-633.850205,0.00027523,2]
[399994718,1766991048391,-2505.35903128,0.00027523,2]
[399994719,1766991216981,350.0,0.00030136,120]
[399994725,1766991793959,1281.57138652,0.00012,2]
[399994726,1766991825082,1500.0,0.00012,3]
[399994729,1766992131107,1317.0,0.00015,10]
[399994731,1766992231576,-349.3,0.00013699,2]
[399994732,1766992231587,-45.70000005,0.00014573,2]
[399994733,1766992231600,-418.26636555,0.00014573,2]
[399994734,1766992231612,-36.0336344,0.00014573,2]
[399994735,1766992231621,-205.42822465,0.00014573,2]
[399994736,1766992231631,-244.15684051,0.00014573,2]
[399994737,1766992231641,-300.0,0.00015223,2]
[399994739,1766992231650,-603.30084986,0.00015224,2]
[399994740,1766992231661,-1821.60408503,0.00015224,2]
[399994741,1766992231672,-477.46971906,0.00015224,2]
[399994742,1766992231684,-6021.17384605,0.00015224,2]
[399994743,1766992231694,-204.58187563,0.00015973,2]
[399994744,1766992231703,-500.0,0.00015973,2]
[399994746,1766992231713,-151.0,0.00016262,2]
[399994748,1766992231722,-151.0,0.00016262,2]
[399994750,1766992231731,-151.0,0.00016286,2]
[399994752,1766992231740,-151.0,0.00016286,2]
[399994754,1766992231753,-1000.0,0.00016521,2]
[399994756,1766992231763,-153.23,0.00016643,2]
[399994757,1766992231771,-200.0,0.00016657,2]
[399994759,1766992231781,-2254.83958594,0.00016712,2]
[399994768,1766992237529,-910.19421475,0.00016712,2]
[399994769,1766992237542,-1834.95619931,0.00016712,2]
[399994770,1766992237552,-299.99,0.00016712,4]
[399994771,1766992237563,-999.99,0.00016712,2]
[399994772,1766992237573,-165.2,0.00016712,2]
[399994773,1766992237582,-433.47174293,0.00017068,2]
[399994774,1766992237591,-227.8,0.00017283,2]
[399994775,1766992237600,-150.0,0.00018225,2]
[399994776,1766992237609,-9999.99,0.00018226,2]
[399994777,1766992237619,-1323.1,0.00018331,2]
[399994778,1766992237627,-9999.99,0.00018533,2]
[399994779,1766992237637,-500.0,0.00018667,2]
[399994780,1766992237647,-5303.42,0.00018699,2]
[399994781,1766992237656,-3726.21938276,0.00019011,2]
[399994782,1766992237687,-7881.97061724,0.00019011,2]
[399994783,1766992237696,-153.23,0.00019417,2]
[399994784,1766992237706,-227.8,0.00019616,2]
[399994785,1766992237716,-8857.72978385,0.00019664,2]
[399994786,1766992237730,-9442.22021615,0.00019664,2]
[399994787,1766992237739,-1000.0,0.0001998,2]
[399994788,1766992237749,-349.3,0.00020187,2]
[399994789,1766992237759,-225.67035971,0.00020609,2]
[399994790,1766992237769,-366.64256361,0.00020676,2]
[399994792,1766992237778,-164.63,0.00020766,2]
[399994794,1766992237787,-547.81843552,0.00020775,2]
[399994795,1766992237798,-500.0,0.00020775,2]
[399994796,1766992237808,-500.0,0.00020775,2]
[399994797,1766992237818,-500.0,0.00020775,2]
[399994798,1766992237827,-500.0,0.00020775,2]
[399994799,1766992237837,-500.0,0.00020775,2]
[399994817,1766992238078,-500.0,0.00020775,2]
[399994819,1766992238088,-500.0,0.00020775,2]
[399994821,1766992238098,-500.0,0.00020775,2]
[399994823,1766992238117,-500.0,0.00020775,2]
[399994825,1766992238132,-500.0,0.00020775,2]
[399994828,1766992238144,-500.0,0.00020775,2]
[399994830,1766992238157,-500.0,0.00020775,2]
[399994832,1766992238168,-500.0,0.00020775,2]
[399994834,1766992238177,-500.0,0.00020775,2]
[399994835,1766992238187,-347.15479854,0.00020775,2]
[399994837,1766992238197,-500.0,0.00020775,2]
[399994838,1766992238207,-500.0,0.00020775,2]
[399994839,1766992238217,-500.0,0.00020775,2]
[399994840,1766992238227,-500.0,0.00020775,2]
[399994841,1766992238237,-500.0,0.00020775,2]
[399994842,1766992238247,-250.0,0.00020775,2]
[399994843,1766992238259,-222.87702691,0.00020775,2]
[399994844,1766992238268,-869.197,0.00020775,2]
[399994845,1766992238278,-150.83,0.00020775,2]
[399994846,1766992238287,-252.22,0.00020775,2]
[399994847,1766992238297,-65981.24328244,0.00020776,2]
[399994848,1766992238308,-559.8602116,0.00020776,2]
[399994849,1766992238319,-3277.85145493,0.00020776,2]
[399994850,1766992238330,-2059.27968357,0.00020776,2]
[399994851,1766992238345,-825.89185212,0.00020776,2]
[399994852,1766992238360,-2506.04343299,0.00020776,2]
[399994853,1766992238372,-588.0,0.00020776,2]
[399994854,1766992238386,-343.42537581,0.00020776,2]
[399994855,1766992238396,-867.92750631,0.00020776,2]
[399994880,1766992239696,-298.12608553,0.00020776,2]
[399994882,1766992239707,-3864.46995742,0.00020776,2]
[399994905,1766992239921,-628.0193291,0.00020776,2]
[399994907,1766992239932,-5218.36329611,0.00020776,2]
[399994909,1766992239943,-912981.49853207,0.00020776,2]
[399994911,1766992239952,-252.22,0.00021049,2]
[399994913,1766992239961,-252.22,0.00021323,2]
[399994915,1766992239970,-167.65658049,0.00021507,4]
[399994916,1766992239980,-252.22,0.00021597,2]
[399994917,1766992239989,-211.34903521,0.00021607,2]
[399994918,1766992239998,-2952.6931278,0.00021607,2]
[399994919,1766992240007,-9431.98401734,0.00021707,2]
[399994920,1766992240016,-226.66941781,0.00021807,2]
[399994921,1766992240026,-252.23,0.00021871,2]
[399994922,1766992240035,-2346.26,0.00021907,2]
[399994923,1766992240044,-227.8,0.0002195,2]
[399994924,1766992240053,-193.55,0.00022,7]
[399994925,1766992240063,-153.23,0.00022191,2]
[399994926,1766992240071,-1000.0,0.00022478,2]
[399994927,1766992240080,-150.0,0.00023706,2]
[399994928,1766992240089,-2952.6931278,0.00023806,2]
[399994929,1766992240098,-9431.9840173,0.00023895,2]
[399994930,1766992240110,-227.8,0.00024283,2]
[399994931,1766992240123,-366.64256356,0.0002434,2]
[399994932,1766992240133,-226.66941777,0.00024786,2]
[399994933,1766992240143,-153.23,0.00024964,2]
[399994934,1766992240152,-1000.0,0.00024975,2]
[399994935,1766992240163,-200.0,0.00025165,2]
[399994936,1766992240172,-167.65658044,0.00025737,10]
[399994937,1766992240181,-2952.6931278,0.00026005,2]
[399994938,1766992240192,-9431.9840173,0.00026083,2]
[399994939,1766992240201,-227.8,0.00026616,2]
[399994940,1766992240210,-349.3,0.00026676,2]
[399994941,1766992240219,-153.45,0.00026826,2]
[399994942,1766992240231,-1000.0,0.00027473,2]
[399994943,1766992240240,-226.66941777,0.00027764,2]
[399994944,1766992240249,-366.64256356,0.00028003,2]
[399994945,1766992240258,-2952.6931278,0.00028205,2]
[399994946,1766992240268,-9431.9840173,0.00028271,2]
[399994947,1766992240278,-227.8,0.0002895,2]
[399994948,1766992240288,-153.45,0.00029062,2]
[399994949,1766992240298,-500.0,0.00029863,60]
[399994950,1766992240307,-150.63621611,0.00029863,60]
[399994951,1766992240316,-500.0,0.00029863,60]
[399994952,1766992240326,-571.0,0.00029863,60]
[399994953,1766992240337,-500.0,0.00029863,2]
[399994954,1766992240347,-597.0,0.00029863,60]
[399994955,1766992240357,-500.0,0.00029863,2]
[399994956,1766992240367,-500.0,0.00029863,60]
[399994957,1766992240376,-150.0,0.00029863,2]
[399994958,1766992240386,-500.0,0.00029863,60]
[399994959,1766992240396,-500.0,0.00029863,60]
[399994960,1766992240405,-500.0,0.00029863,60]
[399994961,1766992240415,-441.0,0.00029863,60]
[399994962,1766992240424,-150.0,0.00029863,2]
[399994963,1766992240433,-500.0,0.0002989,60]
[399994964,1766992240441,-500.0,0.0002989,60]
[399994965,1766992240451,-571.0,0.0002989,60]
[399994966,1766992240460,-613.91329216,0.0002989,2]
[399994967,1766992240469,-597.0,0.0002989,60]
[399994968,1766992240478,-500.0,0.0002989,2]
[399994969,1766992240487,-500.0,0.0002989,60]
[399994970,1766992240496,-500.0,0.0002989,60]
[399994971,1766992240505,-500.0,0.0002989,60]
[399994972,1766992240514,-500.0,0.0002989,60]
[399994973,1766992240524,-441.0,0.0002989,60]
[399994974,1766992240533,-500.0,0.00029918,60]
[399994975,1766992240542,-500.0,0.00029918,60]
[399994976,1766992240551,-571.0,0.00029918,60]
[399994977,1766992240560,-597.0,0.00029918,60]
[399994978,1766992240569,-500.0,0.00029918,2]
[399994979,1766992240578,-259.1272519,0.00029918,60]
[399994980,1766992240587,-641.75453551,0.00029918,60]
[399994981,1766992240596,-500.0,0.00029918,60]
[399994982,1766992240606,-500.0,0.00029918,60]
[399994983,1766992240615,-441.0,0.00029918,60]
[399994984,1766992240624,-500.0,0.00029945,60]
[399994985,1766992240633,-500.0,0.00029945,60]
[399994986,1766992240642,-571.0,0.00029945,60]
[399994987,1766992240651,-597.0,0.00029945,60]
[399994988,1766992240660,-500.0,0.00029945,2]
[399994989,1766992240669,-500.0,0.00029945,60]
[399994990,1766992240678,-500.0,0.00029945,60]
[399994991,1766992240686,-441.0,0.00029945,60]
[399994992,1766992240695,-167.65658044,0.00029967,15]
[399994993,1766992240704,-1000.0,0.0002997,2]
[399994994,1766992240712,-500.0,0.00029973,60]
[399994995,1766992240721,-500.0,0.00029973,60]
[399994996,1766992240730,-571.0,0.00029973,60]
[399994997,1766992240738,-597.0,0.00029973,60]
[399994998,1766992240747,-500.0,0.00029973,2]
[399994999,1766992240756,-500.0,0.00029973,60]
[399995000,1766992240765,-500.0,0.00029973,60]
[399995001,1766992240774,-441.0,0.00029973,60]
[399995002,1766992240783,-500.0,0.0003,60]
[399995003,1766992240791,-500.0,0.0003,60]
[399995004,1766992240800,-571.0,0.0003,60]
[399995005,1766992240809,-597.0,0.0003,60]
[399995006,1766992240818,-500.0,0.0003,2]
[399995007,1766992240827,-500.0,0.0003,60]
[399995008,1766992240836,-500.0,0.0003,60]
[399995009,1766992240844,-441.0,0.0003,60]
[399995010,1766992240854,-500.0,0.00030027,60]
[399995011,1766992240863,-500.0,0.00030027,60]
[399995012,1766992240872,-571.0,0.00030027,60]
[399995013,1766992240882,-597.0,0.00030027,60]
[399995014,1766992240890,-500.0,0.00030027,2]
[399995015,1766992240899,-500.0,0.00030027,60]
[399995016,1766992240908,-512.66956805,0.00030027,60]
[399995017,1766992240917,-441.0,0.00030027,60]
[399995018,1766992240926,-500.0,0.00030055,60]
[399995019,1766992240936,-500.0,0.00030055,60]
[399995020,1766992240946,-571.0,0.00030055,60]
[399995021,1766992240957,-597.0,0.00030055,60]
[399995022,1766992240966,-500.0,0.00030055,2]
[399995023,1766992240976,-323.10310192,0.00030055,60]
[399995024,1766992240985,-441.0,0.00030055,60]
[399995025,1766992240995,-500.0,0.00030082,60]
[399995026,1766992241004,-396.0,0.00030082,60]
[399995027,1766992241013,-571.0,0.00030082,60]
[399995028,1766992241022,-597.0,0.00030082,60]
[399995029,1766992241032,-500.0,0.00030082,2]
[399995030,1766992241041,-441.0,0.00030082,60]
[399995031,1766992241050,-500.0,0.0003011,60]
[399995032,1766992241059,-571.0,0.0003011,60]
[399995033,1766992241068,-597.0,0.0003011,60]
[399995034,1766992241077,-500.0,0.0003011,2]
[399995035,1766992241086,-441.0,0.0003011,60]
[399995036,1766992241095,-500.0,0.00030137,60]
[399995037,1766992241105,-571.0,0.00030137,60]
[399995038,1766992241114,-597.0,0.00030137,60]
[399995039,1766992241127,-369.74524593,0.00030137,2]
[399995040,1766992241136,-441.0,0.00030137,60]
[399995041,1766992241145,-500.0,0.00030164,60]
[399995042,1766992241154,-571.0,0.00030164,60]
[399995043,1766992241163,-597.0,0.00030164,60]
[399995044,1766992241172,-441.0,0.00030164,60]
[399995045,1766992241181,-164.63,0.00030182,2]
[399995046,1766992241190,-426.65062607,0.00030192,60]
[399995047,1766992241199,-571.0,0.00030192,60]
[399995048,1766992241208,-597.0,0.00030192,60]
[399995049,1766992241218,-441.0,0.00030192,60]
[399995050,1766992241227,-571.0,0.00030219,60]
[399995051,1766992241236,-597.0,0.00030219,60]
[399995052,1766992241245,-441.0,0.00030219,60]
[399995053,1766992241254,-571.0,0.00030247,60]
[399995054,1766992241263,-597.0,0.00030247,60]
[399995055,1766992241272,-441.0,0.00030247,60]
[399995056,1766992241282,-571.0,0.00030274,60]
[399995057,1766992241291,-597.0,0.00030274,60]
[399995058,1766992241300,-441.0,0.00030274,60]
[399995059,1766992241308,-571.0,0.00030301,60]
[399995060,1766992241316,-597.0,0.00030301,60]
[399995061,1766992241325,-441.0,0.00030301,60]
[399995062,1766992241335,-571.0,0.00030329,60]
[399995063,1766992241344,-597.0,0.00030329,60]
[399995064,1766992241354,-441.0,0.00030329,60]
[399995065,1766992241364,-571.0,0.00030356,60]
[399995066,1766992241373,-597.0,0.00030356,60]
[399995067,1766992241382,-441.0,0.00030356,60]
[399995068,1766992241393,-571.0,0.00030384,60]
[399995069,1766992241403,-597.0,0.00030384,60]
[399995070,1766992241414,-441.0,0.00030384,60]
[399995071,1766992241423,-2952.6931278,0.00030404,2]
[399995072,1766992241434,-571.0,0.00030411,60]
[399995073,1766992241443,-597.0,0.00030411,60]
[399995074,1766992241453,-441.0,0.00030411,60]
[399995075,1766992241462,-571.0,0.00030438,60]
[399995076,1766992241471,-597.0,0.00030438,60]
[399995077,1766992241482,-441.0,0.00030438,60]
[399995078,1766992241492,-9431.9840173,0.00030459,2]
[399995079,1766992241501,-571.0,0.00030466,60]
[399995080,1766992241510,-597.0,0.00030466,60]
[399995081,1766992241519,-441.0,0.00030466,60]
[399995082,1766992241528,-5303.42,0.0003048,2]
[399995083,1766992241537,-580.85563853,0.00030493,60]
[399995084,1766992241546,-609.76665927,0.00030493,60]
[399995085,1766992241555,-457.44379661,0.00030493,60]
[399995086,1766992241565,-226.66941777,0.00030743,2]
[399995087,1766992241577,-165.2,0.00031016,2]
[399995088,1766992241586,-227.8,0.00031283,2]
[399995089,1766992241595,-153.45,0.00031298,2]
[399995090,1766992241606,-366.64256356,0.00031667,2]
[399995091,1766992241615,-2952.6931278,0.00032603,2]
[399995092,1766992241624,-9431.9840173,0.00032648,2]
[399995093,1766992241633,-3030.0,0.00032864,5]
[399995094,1766992241641,-349.3,0.00033165,2]
[399995095,1766992241650,-153.45,0.00033533,2]
[399995096,1766992241658,-227.8,0.00033617,3]
[399995097,1766992241667,-226.66941777,0.00033721,2]
[399995098,1766992241676,-167.65658044,0.00034198,21]
[399995099,1766992241685,-2952.6931278,0.00034802,2]
[399995100,1766992241694,-9431.9840173,0.00034836,2]
[399995101,1766992241703,-366.64256356,0.00035331,2]
[399995102,1766992241712,-323.28,0.00035458,2]
[399995103,1766992241722,-153.45,0.00035769,2]
[399995104,1766992241731,-227.8,0.0003595,4]
[399995105,1766992241739,-264.52,0.00036428,14]
[399995106,1766992241756,-226.66941777,0.000367,2]
[399995107,1766992241767,-423.82,0.00036774,2]
[399995108,1766992241776,-2952.6931278,0.00037002,2]
[399995109,1766992241785,-9431.9840173,0.00037024,2]
[399995110,1766992241795,-222.30051953,0.00037217,7]
[399995111,1766992241804,-150.0,0.00037332,7]
[399995112,1766992241813,-150.0,0.00037332,7]
[399995113,1766992241822,-156.00800985,0.00037332,7]
[399995114,1766992241832,-150.0,0.00037332,7]
[399995115,1766992241841,-150.0,0.00037332,7]
[399995116,1766992241850,-152.26654522,0.00037332,7]
[399995117,1766992241861,-150.0,0.00037332,7]
[399995118,1766992241870,-151.41609779,0.00037332,7]
[399995119,1766992241879,-150.0,0.00037332,7]
[399995120,1766992241893,-150.0,0.00037746,7]
[399995121,1766992241902,-166.66,0.00037812,2]
[399995122,1766992241912,-168.0,0.00037965,2]
[399995123,1766992241921,-223.59942424,0.00037973,120]
[399995124,1766992241929,-789.76792836,0.00038,120]
[399995125,1766992241938,-153.45,0.00038004,2]
[399995126,1766992241947,-423.82,0.00038144,2]
[399995127,1766992241955,-150.0,0.00038161,7]
[399995128,1766992241964,-150.0,0.00038161,7]
[399995129,1766992241973,-227.8,0.00038283,5]
[399995130,1766992241983,-150.0,0.00038368,7]
[399995131,1766992241992,-150.0,0.00038368,7]
[399995132,1766992242002,-167.65658044,0.00038428,27]
[399995133,1766992242011,-150.0,0.00038576,7]
[399995134,1766992242020,-150.0,0.00038714,7]
[399995135,1766992242029,-150.0,0.00038991,7]
[399995136,1766992242039,-150.0,0.00038991,7]
[399995137,1766992242049,-366.64256356,0.00038994,2]
[399995138,1766992242058,-166.66,0.0003906,2]
[399995139,1766992242067,-2952.6931278,0.00039201,2]
[399995140,1766992242076,-9431.9840173,0.00039212,2]
[399995141,1766992242086,-168.0,0.00039314,2]
[399995142,1766992242096,-150.0,0.00039405,7]
[399995143,1766992242107,-150.0,0.00039405,7]
[399995144,1766992242116,-150.0,0.00039405,7]
[399995145,1766992242129,-150.0,0.00039405,7]
[399995146,1766992242138,-168.0,0.00039568,2]
[399995147,1766992242147,-349.3,0.00039654,2]
[399995148,1766992242156,-226.66941777,0.00039678,2]
[399995149,1766992242165,-150.0,0.0003982,7]
[399995150,1766992242174,-150.0,0.0003982,7]
[399995151,1766992242183,-2999.5,0.0004,95]
[399995152,1766992242193,-150.0,0.00040097,7]
[399995153,1766992242202,-1000.0,0.000401,7]
[399995154,1766992242212,-3315.26171664,0.00040166,7]
[399995155,1766992242222,-150.0,0.00040235,7]
[399995156,1766992242232,-153.45,0.0004024,2]
[399995157,1766992242241,-166.66,0.00040309,2]